bitfinex-derivatives/quotes_BTCF0:USTF0_20250212
["timestamp","ask_amount","ask_price","bid_price","bid_amount"]
[1739365398254,0.5694002,95873.0,95871.0,0.0398]
[1739365399645,0.3608,95873.0,95871.0,0.0398]
[1739365400543,0.3638,95873.0,95871.0,0.0398]
[1739365402243,0.5724014,95873.0,95871.0,0.0398]
[1739365405153,0.3638014,95873.0,95871.0,0.0398]
[1739365405359,0.00015646,95881.0,95872.0,0.07576]
[1739365406061,0.00015646,95881.0,95879.0,0.3608]
[1739365406650,0.00215646,95881.0,95879.0,0.3608]
[1739365406856,0.00315646,95881.0,95879.0,0.3608]
[1739365407251,0.00015646,95881.0,95879.0,0.3608]
[1739365407450,0.00115646,95881.0,95879.0,0.3618]
[1739365408351,0.00115646,95881.0,95879.0,0.001]
[1739365409050,0.00115646,95881.0,95879.0,0.07648]
[1739365409758,0.00015646,95881.0,95879.0,0.07948]
[1739365410260,0.00115646,95881.0,95879.0,0.07848]
[1739365410452,0.00115646,95881.0,95879.0,0.07548]
[1739365410649,0.00315646,95881.0,95879.0,0.07548]
[1739365412159,0.00315646,95881.0,95871.0,0.0398]
[1739365412160,0.00315646,95881.0,95866.0,0.3608]
[1739365412354,0.2085913,95878.0,95867.0,0.07524]
[1739365412655,0.2085913,95878.0,95868.0,0.12517762]
[1739365412860,0.2085913,95878.0,95869.0,0.07516]
[1739365414162,0.2085913,95878.0,95870.0,0.07508]
[1739365414865,0.0443,95880.0,95870.0,0.07508]
[1739365415061,0.00015646,95881.0,95870.0,0.07508]
[1739365417060,0.00015646,95881.0,95872.0,0.2086011]
[1739365417855,0.00115646,95881.0,95872.0,0.2086011]
[1739365418365,0.00115646,95881.0,95870.0,0.07808]
[1739365418564,0.00115646,95881.0,95874.0,0.3608]
[1739365418765,0.00115646,95881.0,95875.0,0.0901]
[1739365419260,0.3608,95893.0,95885.0,0.2085723]
[1739365419460,0.3608,95893.0,95886.0,0.12046]
[1739365419659,0.00972405,95913.0,95888.0,0.3608]
[1739365419859,0.36236482,95902.0,95892.0,0.12517762]
[1739365420567,0.00156482,95902.0,95900.0,0.2085395]
[1739365420751,0.00156482,95902.0,95897.0,0.3608]
[1739365420752,0.00156482,95902.0,95898.0,0.0446]
[1739365421358,0.01156482,95902.0,95898.0,0.0446]
[1739365421662,0.01,95902.0,95900.0,0.2085395]
[1739365421962,0.01,95902.0,95900.0,0.5693395]
[1739365422569,0.014,95902.0,95900.0,0.3608]
[1739365423164,0.016,95902.0,95900.0,0.3608]
[1739365423471,0.02,95902.0,95900.0,0.3608]
[1739365424668,0.006,95902.0,95900.0,0.3638]
[1739365425767,0.00015646,95907.0,95900.0,0.3648]
[1739365425972,0.00015646,95907.0,95900.0,0.2388]
[1739365428264,0.00015646,95907.0,95900.0,0.2358]
[1739365428468,0.00015646,95907.0,95900.0,0.2388]
[1739365429066,0.00015646,95907.0,95900.0,0.2378]
[1739365429266,0.00015646,95907.0,95900.0,0.2388]
[1739365432666,0.36095646,95907.0,95899.0,0.0738]
[1739365433167,0.36095646,95907.0,95881.0,0.0423]
[1739365433475,0.3608,95895.0,95870.0,0.12517762]
[1739365433672,0.3608,95895.0,95865.0,0.0832]
[1739365433673,0.1246,95894.0,95865.0,0.0832]
[1739365433870,0.1246,95894.0,95876.0,0.0738]
[1739365434680,0.1246,95894.0,95887.0,0.00315646]
[1739365436477,0.1246,95894.0,95887.0,0.00015646]
[1739365437580,0.13454084,95894.0,95887.0,0.00015646]
[1739365440372,0.13554084,95894.0,95887.0,0.00015646]
[1739365441084,0.13854084,95894.0,95887.0,0.00015646]
[1739365441477,0.3608,95888.0,95887.0,0.00015646]
[1739365442277,0.3608,95888.0,95875.0,0.0732]
[1739365442478,0.3608,95876.0,95875.0,0.0732]
[1739365444383,0.00015646,95885.0,95875.0,0.0732]
[1739365444578,0.00015646,95885.0,95875.0,0.19837762]
[1739365446179,0.00015646,95885.0,95879.0,0.3608]
[1739365446380,0.00015646,95885.0,95880.0,0.0413]
[1739365447787,0.00115646,95885.0,95880.0,0.0413]
[1739365448381,0.00215646,95885.0,95880.0,0.0413]
[1739365449189,0.00115646,95885.0,95880.0,0.0413]
[1739365450184,0.00315646,95885.0,95880.0,0.0413]
[1739365451094,0.00015646,95885.0,95881.0,0.07284]
[1739365451587,0.00015646,95885.0,95884.0,0.3608]
[1739365453086,0.00015646,95885.0,95884.0,0.43352]
[1739365453282,0.00015646,95885.0,95884.0,0.43348]
[1739365454591,0.00115646,95885.0,95884.0,0.43348]
[1739365456091,0.00115646,95885.0,95884.0,0.3608]
[1739365456299,0.00115646,95885.0,95884.0,0.43336]
[1739365456686,0.00115646,95885.0,95880.0,0.0413]
[1739365456890,0.00115646,95885.0,95884.0,0.07256]
[1739365458103,0.00015646,95885.0,95884.0,0.07256]
[1739365459001,0.00115646,95885.0,95884.0,0.07256]
[1739365462395,0.00115646,95885.0,95884.0,0.43336]
[1739365464001,0.00115646,95885.0,95884.0,0.07256]
[1739365466505,0.3608,95902.0,95884.0,0.43336]
[1739365466694,0.3608,95902.0,95892.0,0.12517762]
[1739365466895,0.3608,95902.0,95893.0,0.0857]
[1739365468191,0.3648,95902.0,95893.0,0.0857]
[1739365469098,0.3718,95902.0,95893.0,0.0857]
[1739365471006,0.3688,95902.0,95893.0,0.0857]
[1739365471297,0.3718,95902.0,95893.0,0.0857]
[1739365472600,0.3718,95902.0,95893.0,0.09584062]
[1739365474006,0.3718,95902.0,95894.0,0.07156]
[1739365475309,0.3728,95902.0,95894.0,0.07156]
[1739365475503,0.3728,95902.0,95893.0,0.01014062]
[1739365475807,0.3728,95902.0,95895.0,0.07148]
[1739365476409,0.18042494,95902.0,95895.0,0.07148]
[1739365476707,0.17742494,95902.0,95895.0,0.07148]
[1739365476899,0.17142494,95902.0,95895.0,0.07148]
[1739365477095,0.17942494,95902.0,95895.0,0.07148]
[1739365477300,0.17642494,95902.0,95895.0,0.07148]
[1739365477506,0.18042494,95902.0,95895.0,0.07148]
[1739365477709,0.17242494,95902.0,95895.0,0.07148]
[1739365477912,0.18142494,95902.0,95895.0,0.07148]
[1739365480008,0.17742494,95902.0,95895.0,0.07148]
[1739365480310,0.18142494,95902.0,95895.0,0.07148]
[1739365485715,0.07660894,95901.0,95895.0,0.07148]
[1739365486900,0.08060894,95901.0,95895.0,0.07148]
[1739365487913,0.08060894,95901.0,95890.0,0.13508005]
[1739365488107,0.08960894,95901.0,95891.0,0.07084]
[1739365488510,0.07660894,95900.0,95891.0,0.07084]
[1739365490110,0.07860894,95900.0,95891.0,0.07084]
[1739365491608,0.08460894,95900.0,95891.0,0.07084]
[1739365492116,0.008,95900.0,95891.0,0.07084]
[1739365493110,0.006,95900.0,95891.0,0.07084]
[1739365493311,0.008,95900.0,95891.0,0.07084]
[1739365493614,0.008,95900.0,95895.0,0.3608]
[1739365494918,0.011,95900.0,95895.0,0.3608]
[1739365495812,0.013,95900.0,95895.0,0.3608]
[1739365504614,0.013,95900.0,95896.0,0.07016]
[1739365505817,0.009,95900.0,95896.0,0.07016]
[1739365506020,0.013,95900.0,95896.0,0.07016]
[1739365506521,0.013,95900.0,95899.0,0.3608]
[1739365506916,0.013,95900.0,95899.0,0.4515]
[1739365507217,0.00015646,95907.0,95906.0,0.2085284]
[1739365508211,0.22813525,95909.0,95908.0,0.2085241]
[1739365508918,0.00156444,95922.0,95916.0,0.2085067]
[1739365509225,0.00152,95936.0,95916.0,0.431]
[1739365509524,0.00015638,95932.0,95928.0,0.3608]
[1739365509913,0.00015638,95932.0,95928.0,0.4487]
[1739365510821,0.2211,95979.0,95928.0,0.4487]
[1739365510822,0.2084241,95955.0,95928.0,0.4487]
[1739365511122,0.3608,95953.0,95943.0,0.12523401]
[1739365511316,0.3608,95953.0,95944.0,0.07028]
[1739365512019,0.3758,95953.0,95944.0,0.07028]
[1739365512324,0.022,95953.0,95949.0,0.3608]
[1739365512923,0.004,95953.0,95949.0,0.3608]
[1739365513114,0.004,95953.0,95950.0,0.089]
[1739365514418,0.009,95953.0,95951.0,0.2084306]
[1739365515121,0.01,95953.0,95951.0,0.2084306]
[1739365515326,0.008,95953.0,95951.0,0.2084306]
[1739365515521,0.011,95953.0,95951.0,0.2084306]
[1739365515921,0.003,95953.0,95937.0,0.3608]
[1739365516120,0.2174274,95953.0,95951.0,0.001]
[1739365516321,0.2214274,95953.0,95951.0,0.001]
[1739365517934,0.23149446,95953.0,95951.0,0.001]
[1739365518425,0.2084306,95951.0,95950.0,0.0706]
[1739365518631,0.5692306,95951.0,95950.0,0.0706]
[1739365520025,0.5732306,95951.0,95950.0,0.0706]
[1739365520929,0.2124306,95951.0,95950.0,0.0706]
[1739365521129,0.2204306,95951.0,95950.0,0.0716]
[1739365521320,0.2204306,95951.0,95950.0,0.001]
[1739365521520,0.2204306,95951.0,95950.0,0.0716]
[1739365521521,0.012,95951.0,95950.0,0.0716]
[1739365522928,0.012,95951.0,95950.0,0.1178]
[1739365523129,0.012,95951.0,95950.0,0.1614]
[1739365528532,0.012,95951.0,95950.0,0.0908]
[1739365528729,0.012,95951.0,95950.0,0.16172]
[1739365531630,0.012,95951.0,95950.0,0.001]
[1739365531831,0.2084393,95947.0,95946.0,0.07084]
[1739365532036,0.2084539,95941.0,95939.0,0.07103638]
[1739365532338,0.0464,95940.0,95939.0,0.07103638]
[1739365533535,0.2084741,95931.0,95930.0,0.00156359]
[1739365535550,0.2094741,95931.0,95930.0,0.01056359]
[1739365536243,0.2114741,95931.0,95930.0,0.00356359]
[1739365536448,0.2114741,95931.0,95930.0,0.00156359]
[1739365536646,0.2124741,95931.0,95930.0,0.00156359]
[1739365537045,0.2114741,95931.0,95930.0,0.00156359]
[1739365537351,0.2124741,95931.0,95930.0,0.00156359]
[1739365538453,0.2094741,95931.0,95930.0,0.00156359]
[1739365538646,0.2114741,95931.0,95930.0,0.00156359]
[1739365539352,0.2124741,95931.0,95930.0,0.00156359]
[1739365539845,0.004,95931.0,95930.0,0.00156359]
[1739365540047,0.001,95931.0,95930.0,0.00156359]
[1739365540240,0.003,95931.0,95930.0,0.00156359]
[1739365541743,0.001,95931.0,95930.0,0.00156359]
[1739365541942,0.003,95931.0,95930.0,0.00156359]
[1739365542545,0.001,95931.0,95930.0,0.00156359]
[1739365542741,0.001,95931.0,95930.0,0.00756359]
[1739365542742,0.002,95931.0,95930.0,0.00756359]
[1739365543156,0.001,95931.0,95930.0,0.00956359]
[1739365543346,0.0464,95940.0,95930.0,0.00356359]
[1739365543655,0.001,95931.0,95930.0,0.1337976]
[1739365543849,0.001,95931.0,95930.0,0.00856359]
[1739365546553,0.001,95931.0,95930.0,0.00656359]
[1739365546754,0.001,95931.0,95930.0,0.00856359]
[1739365547154,0.001,95931.0,95930.0,0.00656359]
[1739365547352,0.001,95931.0,95930.0,0.00856359]
[1739365549757,0.001,95931.0,95930.0,0.00956359]
[1739365551555,0.001,95931.0,95930.0,0.00856359]
[1739365552853,0.001,95931.0,95930.0,0.00656359]
[1739365553058,0.001,95931.0,95930.0,0.07896359]
[1739365553660,0.208432,95951.0,95930.0,0.12756359]
[1739365553864,0.1434,95957.0,95941.0,0.3608]
[1739365554162,0.0953,95957.0,95947.0,0.12523401]
[1739365554359,0.0953,95957.0,95948.0,0.07048]
[1739365554554,0.0496,95957.0,95949.0,0.3608]
[1739365555061,0.0526,95957.0,95949.0,0.3608]
[1739365555961,0.0586,95957.0,95949.0,0.3618]
[1739365556563,0.0626,95957.0,95949.0,0.3618]
[1739365556958,0.0586,95957.0,95949.0,0.3618]
[1739365557261,0.0626,95957.0,95949.0,0.3618]
[1739365557857,0.0616,95957.0,95949.0,0.3618]
[1739365558361,0.3608,95953.0,95942.0,1e-08]
[1739365558665,0.3608,95943.0,95942.0,1e-08]
[1739365559167,0.4594,95943.0,95942.0,1e-08]
[1739365559759,0.7594,95943.0,95930.0,0.00156359]
[1739365559965,0.2084893,95924.0,95922.0,0.07064]
[1739365560165,0.0456,95923.0,95922.0,0.07064]
[1739365560660,0.0456,95923.0,95910.0,0.2085192]
[1739365560661,0.2084983,95920.0,95902.0,0.04976386]
[1739365560858,0.2085033,95918.0,95912.0,0.0706]
[1739365561863,0.2085033,95918.0,95916.0,0.3698]
[1739365562466,0.2095033,95918.0,95916.0,0.3738]
[1739365562668,0.2105033,95918.0,95916.0,0.3738]
[1739365562861,0.2095033,95918.0,95916.0,0.3718]
[1739365564158,0.0506,95922.0,95916.0,0.3628]
[1739365564361,0.001,95918.0,95916.0,0.3678]
[1739365565359,0.001,95922.0,95917.0,0.0479]
[1739365566266,0.001,95922.0,95917.0,0.2564029]
[1739365566662,0.001,95922.0,95917.0,0.26722415]
[1739365567471,0.001,95922.0,95917.0,0.0489]
[1739365567773,0.00015638,95928.0,95918.0,0.07088]
[1739365568370,0.00015638,95928.0,95918.0,0.19611401]
[1739365568770,0.00015638,95928.0,95919.0,0.0456]
[1739365568971,0.001,95922.0,95919.0,0.0456]
[1739365569171,0.002,95922.0,95919.0,0.0456]
[1739365569757,0.001,95922.0,95919.0,0.0456]
[1739365570067,0.00215638,95928.0,95919.0,0.0456]
[1739365570268,0.00215638,95928.0,95925.0,0.3608]
[1739365570663,0.00115638,95928.0,95925.0,0.3608]
[1739365571072,0.00115638,95928.0,95926.0,0.0465]
[1739365571371,0.00115638,95928.0,95927.0,0.07076]
[1739365572468,0.00015638,95928.0,95927.0,0.07076]
[1739365573069,0.00115638,95928.0,95927.0,0.07076]
[1739365573473,0.00115638,95928.0,95927.0,0.07776]
[1739365573667,0.00115638,95928.0,95927.0,0.07976]
[1739365575072,0.00115638,95928.0,95927.0,0.08076]
[1739365575273,0.0467,95948.0,95936.0,0.208462]
[1739365575466,0.2084206,95956.0,95940.0,0.3608]
[1739365575670,0.2084206,95956.0,95941.0,0.11932]
[1739365576072,0.2084206,95956.0,95946.0,0.12523401]
[1739365576580,0.2104206,95956.0,95946.0,0.12523401]
[1739365576779,0.002,95956.0,95949.0,0.3608]
[1739365578271,0.007,95956.0,95949.0,0.3608]
[1739365578475,0.01,95956.0,95949.0,0.3608]
[1739365578880,0.011,95956.0,95949.0,0.3608]
[1739365579076,0.013,95956.0,95949.0,0.3618]
[1739365580782,0.013,95956.0,95952.0,0.2084268]
[1739365581872,0.00015638,95961.0,95952.0,0.2084268]
[1739365582073,0.00015638,95961.0,95957.0,0.3608]
[1739365582272,0.00015638,95961.0,95958.0,0.07044]
[1739365582983,0.01115638,95961.0,95958.0,0.07044]
[1739365583176,0.01615638,95961.0,95958.0,0.07044]
[1739365584772,0.01815638,95961.0,95958.0,0.07044]
[1739365585177,0.02215638,95961.0,95958.0,0.07144]
[1739365592682,0.02215638,95961.0,95960.0,0.208411]
[1739365593383,0.02215638,95961.0,95960.0,0.259011]
[1739365594991,0.02215638,95961.0,95960.0,0.260011]
[1739365596184,0.02215638,95961.0,95960.0,0.0516]
[1739365602690,0.10137858,95979.0,95960.0,0.0516]
[1739365602886,0.10137858,95979.0,95972.0,0.3608]
[1739365603092,0.10137858,95979.0,95972.0,0.43096]
[1739365603988,0.11868352,95979.0,95972.0,0.43096]
[1739365604188,0.13368352,95979.0,95972.0,0.43096]
[1739365604783,0.2083744,95977.0,95972.0,0.43196]
[1739365604989,0.2083766,95976.0,95972.0,0.43196]
[1739365605885,0.03230494,95979.0,95972.0,0.43196]
[1739365606094,0.2083792,95975.0,95972.0,0.43196]
[1739365607201,0.2083792,95975.0,95972.0,0.43296]
[1739365607492,0.013,95977.0,95972.0,0.43296]
[1739365607698,0.012,95975.0,95972.0,0.43296]
[1739365607995,0.013,95975.0,95972.0,0.43296]
[1739365608601,0.2213798,95975.0,95972.0,0.43296]
[1739365609302,0.013,95975.0,95972.0,0.43296]
[1739365609503,0.208381,95974.0,95972.0,0.43296]
[1739365610203,0.013,95975.0,95972.0,0.43296]
[1739365610406,0.2083828,95973.0,95972.0,0.43296]
[1739365610599,0.3738,95975.0,95966.0,0.00015629]
[1739365610801,0.5691958,95967.0,95966.0,0.00015629]
[1739365611704,0.5691958,95967.0,95966.0,0.00115629]
[1739365612996,0.3738,95967.0,95937.0,0.20846]
[1739365613197,0.2084538,95941.0,95935.0,0.06988]
[1739365613710,0.0503,95949.0,95935.0,0.06988]
[1739365613921,0.2084187,95957.0,95945.0,0.2084426]
[1739365614107,0.2084187,95957.0,95949.0,0.12523401]
[1739365614414,0.36224,95959.0,95945.0,0.2084426]
[1739365614614,0.2084228,95955.0,95945.0,0.2084426]
[1739365615514,0.2084228,95955.0,95941.0,0.00015629]
[1739365615710,0.2084228,95955.0,95942.0,0.0698]
[1739365616814,0.2084228,95955.0,95942.0,0.27825]
[1739365617410,0.2114228,95955.0,95942.0,0.27825]
[1739365617716,0.001,95955.0,95942.0,0.27825]
[1739365617912,0.002,95955.0,95942.0,0.27825]
[1739365618703,0.002,95955.0,95942.0,0.28828207]
[1739365618909,0.002,95955.0,95947.0,0.3608]
[1739365619110,0.002,95955.0,95948.0,0.047]
[1739365620106,0.006,95955.0,95947.0,0.3608]
[1739365620310,0.2084501,95942.0,95941.0,0.00015629]
[1739365620512,0.2084636,95936.0,95932.0,0.0698]
[1739365620813,0.208468,95934.0,95932.0,0.0698]
[1739365621120,0.2084769,95930.0,95928.0,0.3608]
[1739365621315,0.1437,95941.0,95928.0,0.3608]
[1739365621613,0.2084701,95933.0,95932.0,0.002]
[1739365621813,0.2084701,95933.0,95932.0,0.008]
[1739365622015,0.2084701,95933.0,95932.0,0.006]
[1739365622215,0.2084701,95933.0,95932.0,0.008]
[1739365622416,0.2084559,95940.0,95932.0,0.008]
[1739365622614,0.1437,95941.0,95932.0,0.008]
[1739365622615,0.2084596,95938.0,95932.0,0.008]
[1739365622821,0.1437,95941.0,95932.0,0.008]
[1739365623119,0.2084685,95934.0,95932.0,0.008]
[1739365623322,0.2084685,95934.0,95932.0,0.002]
[1739365623919,0.2084697,95933.0,95932.0,0.002]
[1739365624120,0.2084697,95933.0,95932.0,0.008]
[1739365625118,0.2084697,95933.0,95932.0,0.002]
[1739365625313,0.2084697,95933.0,95932.0,0.008]
[1739365627717,0.5692697,95933.0,95932.0,0.008]
[1739365630615,0.2084697,95933.0,95932.0,0.008]
[1739365631623,0.2084565,95940.0,95932.0,0.008]
[1739365631819,0.00144,95942.0,95939.0,0.2084561]
[1739365632019,0.00015629,95944.0,95940.0,0.0976]
[1739365632612,0.00015629,95944.0,95940.0,0.3060535]
[1739365633121,0.00015629,95944.0,95940.0,0.0976]
[1739365634123,0.2084522,95942.0,95941.0,0.06992]
[1739365634520,0.2084522,95942.0,95940.0,0.0976]
[1739365635130,0.00115629,95944.0,95933.0,0.0495]
[1739365635131,0.208462,95937.0,95933.0,0.11946]
[1739365635427,0.2084482,95943.0,95933.0,0.11946]
[1739365635818,0.2084514,95942.0,95933.0,0.11946]
[1739365636325,0.00115629,95944.0,95933.0,0.11946]
[1739365636524,0.2084534,95941.0,95933.0,0.11946]
[1739365636726,0.2084553,95940.0,95933.0,0.11946]
[1739365636928,0.2084553,95940.0,95933.0,0.12446]
[1739365637126,0.2084553,95940.0,95933.0,0.12546]
[1739365637617,0.2084553,95940.0,95933.0,0.12046]
[1739365637821,0.2084553,95940.0,95933.0,0.12546]
[1739365640731,0.01008489,95944.0,95933.0,0.12546]
[1739365641232,0.2084619,95937.0,95933.0,0.12546]
[1739365642228,0.2084619,95937.0,95933.0,0.12046]
[1739365642428,0.2084619,95937.0,95933.0,0.12546]
[1739365642930,0.2084619,95937.0,95933.0,0.12446]
[1739365643230,0.2084619,95937.0,95933.0,0.12546]
[1739365644033,0.01008489,95944.0,95933.0,0.12546]
[1739365644328,0.00015629,95944.0,95933.0,0.12554]
[1739365645830,0.00015629,95944.0,95934.0,0.2084667]
[1739365647027,0.00015629,95944.0,95934.0,0.2144667]
[1739365649127,0.00015629,95944.0,95934.0,0.006]
[1739365651523,0.2084495,95943.0,95934.0,0.006]
[1739365652634,0.00015629,95944.0,95934.0,0.001]
[1739365652834,0.00015629,95944.0,95934.0,0.006]
[1739365654131,0.00015629,95944.0,95934.0,0.005]
[1739365654332,0.00015629,95944.0,95934.0,0.006]
[1739365654735,0.00015629,95944.0,95941.0,0.3608]
[1739365654927,0.00015629,95944.0,95942.0,0.07152]
[1739365655835,0.00115629,95944.0,95942.0,0.07152]
[1739365656538,0.2083947,95968.0,95942.0,0.07152]
[1739365656740,0.2083947,95968.0,95958.0,0.12523401]
[1739365657035,0.2083947,95968.0,95959.0,0.049]
[1739365657528,0.22120089,95968.0,95959.0,0.049]
[1739365658536,0.00015629,95973.0,95959.0,0.049]
[1739365659234,0.014,95968.0,95959.0,0.05]
[1739365659537,0.026,95968.0,95959.0,0.051]
[1739365659938,0.01415629,95973.0,95959.0,0.05]
[1739365661036,0.02681286,95973.0,95963.0,0.12523401]
[1739365661732,0.01415629,95973.0,95963.0,0.12523401]
[1739365661933,0.00015629,95973.0,95963.0,0.12523401]
[1739365662130,0.014,95968.0,95963.0,0.12523401]
[1739365662937,0.02,95968.0,95959.0,0.2594123]
[1739365663138,0.20986701,95974.0,95963.0,0.001]
[1739365663535,0.007,95968.0,95963.0,0.002]
[1739365664034,0.006,95968.0,95963.0,0.001]
[1739365664439,0.2083837,95973.0,95963.0,0.001]
[1739365664737,0.2083837,95973.0,95964.0,0.07124]
[1739365664938,0.208386,95972.0,95964.0,0.07124]
[1739365665142,0.001,95968.0,95964.0,0.07124]
[1739365665737,0.2093943,95968.0,95964.0,0.07124]
[1739365665940,0.2083943,95968.0,95964.0,0.07224]
[1739365666140,0.2083967,95967.0,95964.0,0.07224]
[1739365666532,0.001,95973.0,95964.0,0.07216]
[1739365666831,0.2083833,95973.0,95964.0,0.07216]
[1739365667235,0.2083833,95973.0,95965.0,0.3608]
[1739365668441,0.001,95967.0,95965.0,0.3608]
[1739365669140,0.00015629,95975.0,95965.0,0.3608]
[1739365669343,0.005,95973.0,95965.0,0.48803401]
[1739365669843,0.004,95967.0,95965.0,0.48803401]
[1739365670146,0.005,95967.0,95965.0,0.3628]
[1739365670943,0.001,95967.0,95965.0,0.3618]
[1739365671144,0.001,95967.0,95965.0,0.3628]
[1739365671746,0.005,95973.0,95965.0,0.3628]
[1739365672039,0.005,95973.0,95965.0,0.5711997]
[1739365672443,0.001,95973.0,95965.0,0.5701997]
[1739365672645,0.004,95967.0,95965.0,0.5711997]
[1739365673135,0.005,95973.0,95966.0,0.208398]
[1739365673336,0.004,95973.0,95967.0,0.2083956]
[1739365673836,0.00015629,95975.0,95968.0,0.2083934]
[1739365674038,0.00015629,95975.0,95974.0,0.5691807]
[1739365674237,0.00015629,95975.0,95974.0,0.3608]
[1739365675538,0.00015629,95975.0,95974.0,0.3618]
[1739365675749,0.00115629,95975.0,95974.0,0.3618]
[1739365676850,0.00515629,95975.0,95974.0,0.3618]
[1739365677260,0.00515629,95975.0,95974.0,0.4135]
[1739365677443,0.00515629,95975.0,95974.0,0.6218806]
[1739365677750,0.00515629,95975.0,95974.0,0.6924806]
[1739365678846,0.00515629,95975.0,95974.0,0.4841]
[1739365685058,0.00515629,95975.0,95974.0,0.6924807]
[1739365686956,0.00515629,95975.0,95974.0,0.4841]
[1739365688359,0.00515629,95975.0,95974.0,0.4837]
[1739365689749,0.00515629,95975.0,95974.0,0.4135]
[1739365689951,0.00515629,95975.0,95974.0,0.4837]
[1739365690850,0.00515629,95975.0,95974.0,0.4135]
[1739365691046,0.00515629,95975.0,95974.0,0.48366]
[1739365693562,0.00515629,95975.0,95974.0,0.6920407]
[1739365700472,0.00156352,95993.0,95974.0,0.48366]
[1739365700779,0.00156352,95993.0,95992.0,0.3608]
[1739365701077,0.00156352,95993.0,95992.0,0.4306]
[1739365701674,0.00256352,95993.0,95992.0,0.43056]
[1739365702371,0.00256352,95993.0,95992.0,0.6389016]
[1739365702571,0.00256352,95993.0,95992.0,0.6399016]
[1739365703579,0.00156352,95993.0,95992.0,0.6409016]
[1739365703771,0.1,96000.0,95996.0,0.208331]
[1739365705781,0.1,96000.0,95992.0,0.52786]
[1739365705782,0.1,96000.0,95992.0,0.7362008]
[1739365705982,0.1,96000.0,95992.0,0.52686]
[1739365706177,0.1,96000.0,95996.0,0.001]
[1739365706383,0.1,96000.0,95996.0,0.002]
[1739365707082,0.1,96000.0,95997.0,0.06968]
[1739365707378,0.2083265,95999.0,95998.0,0.06968]
[1739365707575,0.3520265,95999.0,95998.0,0.06968]
[1739365708080,0.3520265,95999.0,95998.0,0.3608]
[1739365708278,0.3520265,95999.0,95998.0,0.06992]
[1739365709277,0.3520265,95999.0,95998.0,0.07092]
[1739365709680,0.3520265,95999.0,95998.0,0.07192]
[1739365711786,0.3520265,95999.0,95998.0,0.002]
[1739365714387,0.3040265,95999.0,95998.0,0.002]
[1739365714891,0.1,96000.0,95998.0,0.002]
[1739365717496,0.3083255,96000.0,95998.0,0.002]
[1739365719892,0.2083264,95999.0,95998.0,0.002]
[1739365720194,0.2083264,95999.0,95998.0,0.07212]
[1739365721387,0.2083264,95999.0,95998.0,0.07112]
[1739365721590,0.2083264,95999.0,95998.0,0.07212]
[1739365733302,0.2083264,95999.0,95998.0,0.002]
[1739365733606,0.208359,95984.0,95983.0,0.00015629]
[1739365733807,0.208359,95984.0,95983.0,0.07007629]
[1739365734996,0.3608,95999.0,95983.0,0.07007629]
[1739365735398,0.2083589,95984.0,95983.0,0.07007629]
[1739365737704,0.2093589,95984.0,95983.0,0.07007629]
[1739365738007,0.2093589,95984.0,95983.0,0.07107629]
[1739365738206,0.2093589,95984.0,95983.0,0.00115629]
[1739365738511,0.2093589,95984.0,95977.0,0.16672]
[1739365738512,0.2083677,95980.0,95977.0,0.16672]
[1739365739005,0.2083677,95980.0,95939.0,0.3608]
[1739365739006,0.37757002,95984.0,95950.0,0.12523401]
[1739365739205,0.37609002,95984.0,95961.0,0.0479]
[1739365739412,0.12523401,95971.0,95964.0,0.06992]
[1739365740006,0.2084003,95965.0,95964.0,0.06992]
[1739365740206,0.3608,95966.0,95930.0,0.12523401]
[1739365740418,0.2084285,95952.0,95951.0,0.25685674]
[1739365740905,0.2084285,95952.0,95951.0,0.18693674]
[1739365741503,0.2084285,95952.0,95951.0,0.005]
[1739365741898,0.3608,95958.0,95951.0,0.005]
[1739365742112,0.3608,95958.0,95951.0,0.019]
[1739365742412,0.3608,95958.0,95951.0,0.014]
[1739365742605,0.3608,95958.0,95951.0,0.018]
[1739365742913,0.3608,95958.0,95951.0,0.004]
[1739365743209,0.3608,95958.0,95951.0,0.016]
[1739365743610,0.2084285,95952.0,95951.0,0.016]
[1739365745701,0.2084285,95952.0,95951.0,0.012]
[1739365746611,0.2084437,95945.0,95944.0,0.16728]
[1739365747704,0.2084437,95945.0,95944.0,0.0974]
[1739365748908,0.2084437,95945.0,95944.0,0.0491]
[1739365749710,0.2084437,95945.0,95944.0,0.0511]
[1739365749909,0.2084437,95945.0,95944.0,0.002]
[1739365755413,0.208448,95943.0,95942.0,0.00015629]
[1739365756215,0.208448,95943.0,95922.0,0.0463]
[1739365756216,0.2084915,95923.0,95922.0,0.0463]
[1739365758221,0.2084915,95923.0,95922.0,0.0613]
[1739365758519,0.2084915,95923.0,95922.0,0.0673]
[1739365763314,0.208479,95929.0,95922.0,0.0673]
[1739365764111,0.2084813,95928.0,95922.0,0.0673]
[1739365764323,0.00015638,95932.0,95922.0,0.0673]
[1739365764324,0.00015638,95932.0,95922.0,0.0613]
[1739365764526,0.00015638,95932.0,95922.0,0.0673]
[1739365764729,0.2084838,95927.0,95922.0,0.0523]
[1739365764923,0.2084838,95927.0,95922.0,0.0673]
[1739365765728,0.2084872,95925.0,95922.0,0.0673]
[1739365766029,0.2084915,95923.0,95922.0,0.0673]
[1739365766219,0.2084915,95923.0,95922.0,0.13686]
[1739365768128,0.2084915,95923.0,95922.0,0.0673]
[1739365768522,0.2084915,95923.0,95922.0,0.0523]
[1739365768827,0.2084915,95923.0,95922.0,0.0673]
[1739365773836,0.2084915,95923.0,95922.0,0.021]
[1739365783243,0.22020784,95923.0,95922.0,0.021]
[1739365799542,0.01171634,95923.0,95922.0,0.021]
[1739365799759,0.3608,95928.0,95922.0,0.021]
[1739365800256,0.37249004,95928.0,95922.0,0.021]
[1739365800555,0.2084915,95923.0,95922.0,0.021]
[1739365800747,0.2084915,95923.0,95922.0,0.006]
[1739365800941,0.2084915,95923.0,95922.0,0.021]